Cogmind - Beta 14 @@@ ROGUE MODE // 2025.03.15 @ 19:39:24 Player: GiggleBox Result: Self-destructed Performance ------------- Evolutions (1) 500 Regions Visited (2) 400 Robots Destroyed (11) 55 Value Destroyed (305) 305 Prototype IDs (0) 0 Alien Tech Used (0) 0 Bonus (0) 0 TOTAL SCORE: 1260 Bonus ------- None Cogmind --------- Core Integrity 371/400 Matter 90/300 Energy 250/250 System Corruption 0% Temperature Cool (0) Movement Rolling (93) Location -9/Materials Parts ------- > --- POWER (1) -------- Ion Engine > --- PROPULSION (3) --- Wheel Compact Wheel Compact Wheel > --- UTILITY (3) ------ Small Storage Unit Sensor Array Seismic Detector > --- WEAPON (2) ------- Grenade Launcher Grenade Launcher > --- INVENTORY (8) ---- Light Ion Engine EM Pulse Gun Assault Rifle Peak State ------------ > --- POWER ------------ Ion Engine > --- PROPULSION ------- Wheel Compact Wheel Compact Wheel > --- UTILITY ---------- Small Storage Unit Sensor Array Seismic Detector > --- WEAPON ----------- Grenade Launcher Grenade Launcher > --- INVENTORY -------- Light Ion Engine EM Pulse Gun Assault Rifle [Rating: 9] Favorites ----------- Power Ion Engine Engine Ion Engine Propulsion Compact Wheel Wheel Compact Wheel Utility Small Storage Unit Device Seismic Detector Storage Small Storage Unit Weapon Grenade Launcher Energy Gun EM Pulse Gun Ballistic Gun Assault Rifle Launcher Grenade Launcher Build | -11 -10 -9 ------- Run | Yrd Mat Mat Slots Evolved 2 | . . 2 Power . | . . . Propulsion 1 | . . 1 Utility 1 | . . 1 Weapon . | . . . Parts Attached 14 | 8 4 2 Power 1 | 1 . . Engine 1 | 1 . . Core . | . . . Reactor . | . . . Propulsion 5 | 3 1 1 Treads . | . . . Leg . | . . . Wheel 5 | 3 1 1 Hover . | . . . Flight . | . . . Utility 3 | 2 . 1 Device 2 | 1 . 1 Storage 1 | 1 . . Processor . | . . . Hackware . | . . . Protection . | . . . Artifact . | . . . Weapon 5 | 2 3 . Energy Gun 2 | 2 . . Energy Cannon . | . . . Ballistic Gun 1 | . 1 . Ballistic Cannon . | . . . Launcher 2 | . 2 . Special Weapon . | . . . Impact Weapon . | . . . Slashing Weapon . | . . . Piercing Weapon . | . . . Special Melee Weapon . | . . . Unidentified Prototypes . | . . . Parts Lost 1 | . 1 . Power . | . . . Propulsion 1 | . 1 . Utility . | . . . Weapon . | . . . Highest Loss Streak 1 | . 1 . To Critical Strikes . | . . . Average Slot Usage (%) 98 | . 100 94 Engine 12 | . 14 11 Wheel 29 | . 28 33 Device 15 | . 14 16 Storage 12 | . 14 11 Energy Gun 7 | . 11 . Ballistic Gun 4 | . 6 . Launcher 14 | . 10 22 Peak Build Rating 9 | 7 7 9 Average Rating 6 | 4 6 8 On Entrance 4 | . 7 7 Naked Turns . | . . . Heaviest Build 18 | 15 17 18 Greatest Support 42 | 26 26 42 Greatest Overweight (x) 1 | . 1 . Average Overweight (x) . | . . . Largest Inventory Capacity 8 | 8 8 8 Average Capacity 7 | 7 8 8 Most Carried 5 | 5 5 4 Average Carried 2 | 2 3 3 Final Capacity 8 | 8 8 8 Final Carried 4 | 3 4 3 Class Distribution -------------------- 100% | Mutant Dominant Class ---------------- Mutant | -10/Materials Mutant | -9/Materials Resources | -11 -10 -9 ----------- Run | Yrd Mat Mat Matter Collected 305 | 105 200 . Remotely . | . . . Salvage Created 260 | 40 191 29 Parts 19 | 7 11 1 Haulers Intercepted . | . . . Recyclers Shooed . | . . . Parts Field Recycled . | . . . Retrieved Matter . | . . . Parts Self-Destructed . | . . . Prevented . | . . . Kills | -11 -10 -9 ------- Run | Yrd Mat Mat Combat Hostiles Destroyed 8 | . 6 2 Guns 5 | . 5 . AOE 3 | . 1 2 Classes Destroyed 5 | 1 2 2 Tunneler 2 | 2 . . Watcher 1 | . . 1 Swarmer 3 | . 3 . Grunt 3 | . 3 . Sentry 2 | . . 2 Best Kill Streak 6 | 2 6 1 Combat Bots Only 6 | . 6 1 Max Kills in Single Turn 1 | 1 1 1 Gunslinging . | . . . Exploded 1 | . 1 1 Melee . | . . . Uniques/NPCs Destroyed . | . . . Combat | -11 -10 -9 -------- Run | Yrd Mat Mat Hostile Shots Fired 31 | . 19 12 Missed 13 | . 5 8 Damage Taken 339 | . 211 128 Core 73 | . 44 29 Absorbed by Shields . | . . . Core Remaining (%) 91 | 100 82 . Volleys Fired 26 | 6 11 9 Largest 2 | 2 2 2 Hottest 80 | 80 80 60 Shots Fired 52 | 12 22 18 Gun 34 | 12 22 . Cannon . | . . . Launcher 18 | . . 18 Special . | . . . Kinetic . | . . . Thermal . | . . . Explosive 18 | . . 18 Electromagnetic 34 | 12 22 . Robot Hit Streak 8 | 3 8 7 Robot Miss Streak 2 | 2 2 . Penetration Max . | . . . Secondary Targets . | . . . Shots Hit Robots 26 | 7 12 7 Core Hits 21 | 2 8 11 Critical Kills . | . . . Critical Parts Destroyed . | . . . Critical Strikes . | . . . Melee Attacks . | . . . Impact . | . . . Slashing . | . . . Piercing . | . . . Sneak Attacks . | . . . Combat Hostiles . | . . . Follow-up Attacks . | . . . Damage Inflicted 819 | 226 317 276 Guns 282 | 127 155 . Cannons . | . . . Explosions 525 | 99 150 276 Melee . | . . . Ramming 12 | . 12 . Kinetic . | . . . Thermal 249 | 99 150 . Explosive 276 | . . 276 Electromagnetic 282 | 127 155 . Impact . | . . . Slashing . | . . . Piercing . | . . . Highest Corruption . | . . . Average Corruption . | . . . Corruption Purged . | . . . Corruption Blocked . | . . . Overload Shots . | . . . Overflow Damage 20 | . 16 4 Projectiles . | . . . Explosions 20 | . 16 4 Melee . | . . . Knockbacks . | . . . Impact . | . . . Kinetic . | . . . Secondary . | . . . Self-Inflicted Damage 148 | . 79 69 Shots 7 | . 2 5 Rammed 1 | . 1 . Targets Rammed 1 | . 1 . Kicked . | . . . Crushed . | . . . Highest Temperature 162 | 54 162 24 Average Temperature 50 | 23 69 16 Received Heat Transfer 90 | . 45 45 Siege Activations . | . . . Robots Corrupted . | . . . Combat Hostiles . | . . . Parts Fried . | . . . Impact Corruptions . | . . . Robots Melted . | . . . Combat Hostiles . | . . . Parts Melted . | . . . Heat Transferred 350 | 150 200 . Parts Sabotaged . | . . . Parts Stolen . | . . . Parts Stripped . | . . . Power Chain Reactions 3 | 1 2 . Alert | -11 -10 -9 ------- Run | Yrd Mat Mat Peak Influence 368 | 10 236 368 Initial 99 | . 6 99 Average 155 | 2 183 198 Maximum Alert Level 1 | . 1 1 Low Security (%) 45 | 100 28 42 Level 1 55 | . 71 57 Level 2 . | . . . Level 3 . | . . . Level 4 . | . . . Level 5 . | . . . High Security . | . . . Max Security . | . . . Squads Dispatched . | . . . Investigation . | . . . Extermination . | . . . Reinforcement . | . . . Assault . | . . . Garrison . | . . . Intercept . | . . . Searches Triggered . | . . . Construction Impeded . | . . . Haulers Reinforced . | . . . Active Scanning Responses . | . . . Cargo Convoy Interrupts . | . . . Stealth | -11 -10 -9 --------- Run | Yrd Mat Mat Distress Signals . | . . . Communications Jammed . | . . . Distress Signals . | . . . Times Spotted 16 | . 11 5 Peak Tracking Total 6 | . 6 2 Tactical Retreats 2 | . 2 . Traps | -11 -10 -9 ------- Run | Yrd Mat Mat Traps Triggered . | . . . Indirectly . | . . . Trap Hack Attempts . | . . . Triggered . | . . . Disarmed . | . . . Reprogrammed . | . . . Reused . | . . . Traps Extracted . | . . . Installed . | . . . Triggered . | . . . Machines | -11 -10 -9 ---------- Run | Yrd Mat Mat Machines Disabled 4 | . 1 3 Max in Single Turn 2 | . 1 2 Machines Repaired . | . . . Machines Dismantled . | . . . Machines Sabotaged . | . . . Overloaded Fab Kills . | . . . Hacking | -11 -10 -9 --------- Run | Yrd Mat Mat Machines Accessed . | . . . Terminals . | . . . Fabricators . | . . . Repair Stations . | . . . Recycling Units . | . . . Scanalyzers . | . . . Garrison Access . | . . . Total Hacks . | . . . Successful . | . . . Failed . | . . . Catastrophic . | . . . Database Lockouts . | . . . Manual . | . . . Terminals . | . . . Fabricators . | . . . Repair Stations . | . . . Recycling Units . | . . . Scanalyzers . | . . . Garrison Access . | . . . Terminal Hacks . | . . . Fabricator Hacks . | . . . Repair Station Hacks . | . . . Recycling Unit Hacks . | . . . Scanalyzer . | . . . Garrison Access Hacks . | . . . Unauthorized Hacks . | . . . Terminals . | . . . Fabricators . | . . . Repair Stations . | . . . Recycling Units . | . . . Scanalyzers . | . . . Garrison Access . | . . . Data Cores Recovered . | . . . Used . | . . . Hacking Detections . | . . . Full Trace Events . | . . . Feedback Events . | . . . Feedback Blocked . | . . . Robot Schematics Acquired . | . . . Robots Built . | . . . Authchips . | . . . Time . | . . . Total Robot Build Rating . | . . . Part Schematics Acquired . | . . . Parts Built . | . . . Authchips . | . . . Time . | . . . Total Part Build Rating . | . . . Parts Repaired . | . . . Time . | . . . Parts Recycled . | . . . Recycled Matter . | . . . Retrieved Matter . | . . . Retrieved Components . | . . . Parts Scanalyzed . | . . . Part Schematics Acquired . | . . . Parts Damaged . | . . . Bothacking | -11 -10 -9 ------------ Run | Yrd Mat Mat Used RIF Installer . | . . . Robots Hacked . | . . . Non-combat . | . . . Combat . | . . . Robot Hacks Applied . | . . . Relay Couplers Released . | . . . Fabnet Peak Effective % . | . . . Robots Rewired . | . . . Allies Hacked . | . . . Hacks Repelled . | . . . Allies | -11 -10 -9 -------- Run | Yrd Mat Mat Total Allies . | . . . Largest Group . | . . . Highest-Rated Group . | . . . Highest-Rated Ally . | . . . Total Orders . | . . . Ally Attacks . | . . . Total Damage . | . . . Kills . | . . . Allies Corrupted . | . . . Allies Melted . | . . . Intel | -11 -10 -9 ------- Run | Yrd Mat Mat Robot Analysis Total . | . . . Derelict Logs Recovered . | . . . Drone Launches . | . . . Drone Recoveries . | . . . Exploration | -11 -10 -9 ------------- Run | Yrd Mat Mat Turns Passed 460 | 82 251 127 Spaces Moved 391 | 58 229 104 Core 18 | 18 . . Treads . | . . . Legs . | . . . Wheels 373 | 40 229 104 Hover . | . . . Flight . | . . . Fastest Speed 50 | 50 80 93 Average Speed 87 | 76 87 93 Slowest Speed 95 | 90 95 93 Overloaded Moves . | . . . Propulsion Burnouts . | . . . Robots Hopped . | . . . Cave-ins Triggered . | . . . Exploration Rate (%) 17 | 4 38 11 Regions Visited 2 Branch Regions . Pre-discovered Areas . | . . . Known Exits Taken . | . . . Unknown Exits Taken 2 | 1 1 . Scrap Searched . | . . . Spaces Dug . | . . . Terrain Destroyed 98 | . 8 90 Melee . | . . . Projectile . | . . . AOE 98 | . 8 90 Terrain Rammed . | . . . Walls Destroyed . | . . . Machines Disabled . | . . . Actions | -11 -10 -9 --------- Run | Yrd Mat Mat Total 455 | 83 256 116 Wait 4 | . 4 . Move 389 | 57 228 104 Hop . | . . . Pick Up 17 | 11 5 1 Fast Attach . | . . . Attach 10 | 7 1 2 Detach . | . . . Swap 4 | 1 3 . Drop 4 | 1 3 . Fire 26 | 6 11 9 Melee . | . . . Ram 1 | . 1 . Kick . | . . . Crush . | . . . Escape Stasis . | . . . Rewire . | . . . Trap . | . . . Miscellaneous . | . . . Route ------- -11/Scrapyard -10/Materials -9/Materials History --------- Turn | Location | Event 24 | -11/Scrapyard | Discovered new exit (range 15) 83 | -11/Scrapyard | Entered Materials 278 | -10/Materials | Discovered new exit (range 12) 325 | -10/Materials | Build established: Mutant 334 | -10/Materials | Entered another Materials area 334 | -9/Materials | Evolved 2 slots: Propulsion x1, Utility x1 461 | -9/Materials | Self-destructed Last Messages --------------- GOAL=ESCAPE 00368_ The unstable cave ceiling collapses. 00379_ Recycling Unit disabled. 00381_ The unstable cave ceiling collapses. 00384_ Critical hit (Burn: +37). 00388_ Y-45 Defender destroyed. 00392_ The unstable cave ceiling collapses. 00397_ Acquired Sensor Array. 00398_ The unstable cave ceiling collapses. 00426_ Destroyed Lgt. Ion Engine. 00426_ W-16 Scout destroyed. 00438_ K-01 Serf collects debris. 00446_ The unstable cave ceiling collapses. 00448_ Connecting with Terminal... 00448_ Current location identified: Materials 00449_ Y-45 Defender destroyed. 00454_ K-01 Serf collects debris. 00458_ Terminal disabled. 00461_ The unstable cave ceiling collapses. 00461_ K-01 Serf collects debris. Map ----- +----------------------------------------------------+ | ?????????????????????????????????????????????????? | | ?????????????????????????????????????????????????? | | ?????????????????????????????????????????????????? | | ?????????????????????????????????????????????????? | | ?????????????????????????????????????????????????? | | ?????????????????????????????????????????????????? | | ?????????????????????????????????????????????????? | | ?????????????????????????????????????????????????? | | ?????????????????????????????????????????????????? | | ?????????????????????????????????????????????????? | | ?????????????????????????????????????????????##### | | ?????????????????????????????????????????????# | | ?????????????????????????????????????????????# | | ?????????????????????????????????????????????# !! | | ?????????????????????????????????????????????# | | ?????????????????????????????????????????????##### | | ????????????????????????????????????????????????## | | ????????????????????????????????????????????????# | | ?????????????????????####?####??????????????????# | | ????????????#+???????# ## ##?????????????????# | | ???????????? ###+## #?????????????????# | | ?????????????? #?????????????????# | | ???????????????? *% ##+##??????????????## | | ???????????????????g #??????????????# | | ?????????????????##/## #??????????????# | | ?????????????????# @ k ################ | | ?????????????????# # ## # | | ?????????????????# ## """# | | ?????????????????# ## ## ## """# | | ?????????????????# ??# ## ## """# ##### | | ?????????????????# ???# ## ## # #???? | | ?????????????????# ???# # ? # #???? | | ?????????????????#????# ## ##+### ##### | | ??????????????????????# # | | ?????????????????????? # | | ?????????????????????? # | | ??????????????????? g ## # ##########+#### | | ??????????????????#### # ########??????# # | | ?????????????????????#####?##?????????????# """ # | | ??????????????????????????????????????????# """ # | | ??????????????????????????????????????????# """ # | | ??????????????????????????????????????????# # | | ??????????????????????????????????????????# # | | ??????????????????????????????????????????######## | | ?????????????????????????????????????????????????? | | ?????????????????????????????????????????????????? | | ?????????????????????????????????????????????????? | | ?????????????????????????????????????????????????? | | | | | +----------------------------------------------------+ Best States ------------- Heat Dissipation 28 Energy Generation 10 Energy Capacity 250 Matter Stores 300 Matter Capacity 300 Sight Range 16 Robot Scan Range 14 Terrain Scan Density 10 Evasion (%) 50 Item Schematics ----------------- None Robot Schematics ------------------ None Fabricated ------------ Nothing Alien Tech Used ----------------- None Achievements -------------- None Challenges ------------ None Game ------ Seed CompactShadeProjector Manual? 0 Play Time 00:12:35 Cumulative 9.1 hours Start 2025.03.15 @ 19:15:03 End 2025.03.15 @ 19:39:24 Sessions 1 Manual Loads 0 Difficulty Rogue Special Mode None Game No. 13 Rogue 13 Adventurer 0 Explorer 0 Win Type - Total 0 Types 0/0/0/0/0/0/0/0/0 Lore% 5 Gallery% 16 Achievement% 12 Wizard Run 0 Options --------- Layout 0 ASCII 0 Keyboard 0 Movement Numpad Keybinds 0 Fullscreen 1 Font 24/Smallcaps Map View 76x50 Zoom Use 0% Tactical HUD 1 Map Filters NONE Filters NONE Steam 1 RUN: 9b5dffa4-52c4-45a5-9b42-197ab7e80551